Workbook

Sheet Mestaruussarja
B1: Jouni Kallio | E1: 2.2.1962
B2: MESTARUUSSARJA | E2: Runkosarja | I2: Kärkilyönnit (KL), pesänvälit | P2: Ylempi loppusarja | W2: Alempi loppusarja | AD2: Arvo-ottelut | AH2: Mitalit
B3: Vuosi | C3: Sija | D3: Seura | E3: OTT | F3: KUN | G3: LÖI | H3: TOI | I3: KL | J3: 0 > 1 | K3: 1 > 2 | L3: 2 > 3 | M3: 3 > k | N3: KL-% | P3: OTT | Q3: KUN | R3: LÖI | S3: TOI | T3: KL | U3: KL-% | W3: OTT | X3: KUN | Y3: LÖI | Z3: TOI | AA3: KL | AB3: KL-% | AD3: IL | AE3: LL | AF3: Cup | AG3: K | AH3: H | AI3: P
B4: 1988 | C4: 4. | D4: TPP | F4: suomensarja | AF4: 1
B5: ****
B6: 1992 | C6: 10. | D6: JoKo | F6: ykköspesis
B7: 1993 | C7: 9. | D7: JoKo | F7: ykköspesis
B8: Yhteensä | E8: =SUM(E4:E4) -> 0 | F8: 0 | G8: 0 | H8: 0 | I8: 0 | J8: 0 | K8: 0 | L8: 0 | M8: 0 | P8: 0 | Q8: 0 | R8: 0 | S8: 0 | T8: 0 | W8: 0 | X8: 0 | Y8: 0 | Z8: 0 | AA8: 0 | AD8: 0 | AE8: 0 | AF8: 0 | AG8: 0 | AH8: 0 | AI8: 0
B9: Pesispörssi | D9: 15.0
B11: URA SM-SARJASSA | E11: OTT | F11: KUN | G11: LÖI | H11: TOI | I11: KL | K11: ka/L | L11: ka/T | M11: ka/KL | N11: KL-% | P11: ENSIMMÄISET RUNKOSARJASSA
B12: Runkosarja
B13: Ylempi loppusarja
B14: Alempi loppusarja
B15: KAIKKI
B17: Seurat | D17: TPP = Tammelan Pallopeliitat
D18: JoKo = Jokioisten Koetus (1902)

Sheet MYP, MSS
B1: Jouni Kallio | E1: 2.2.1962
B2: YKKÖSPESIS | E2: Runkosarja | L2: Runkosarja TOP-10 | Q2: Jatkosarjat | X2: SUOMENSARJA | AA2: Runkosarja | AH2: Runkosarja TOP-10 | AM2: Jatkosarjat
B3: Vuosi | C3: Sija | D3: Seura | E3: OTT | F3: KUN | G3: LÖI | H3: TOI | I3: KL | J3: KL-% | L3: LÖI | M3: TOI | N3: L+T | O3: KL | Q3: OTT | R3: KUN | S3: LÖI | T3: TOI | U3: KL | V3: KL-% | X3: Vuosi | Y3: Sija | Z3: Seura | AA3: OTT | AB3: KUN | AC3: LÖI | AD3: TOI | AE3: KL | AF3: KL-% | AH3: LÖI | AI3: TOI | AJ3: L+T | AK3: KL | AM3: OTT | AN3: KUN | AO3: LÖI | AP3: TOI | AQ3: KL | AR3: KL-%
X4: 1988 | Y4: 4. | Z4: TPP | AA4: 22 | AB4: 0 | AC4: 9 | AD4: 15
X6: 1990 | Y6: 4. | Z6: JoKo | AA6: 22 | AB6: 1 | AC6: 23 | AD6: 18
B8: 1992 | C8: 10. | D8: JoKo | E8: 26 | F8: 2 | G8: 16 | H8: 16 | I8: 184 | O8: 1.
B9: 1993 | C9: 9. | D9: JoKo | E9: 26 | F9: 2 | G9: 25 | H9: 12 | I9: 176 | O9: 3.
B10: YHTEENSÄ | E10: =SUM(E4:E9) -> 52 | F10: =SUM(F4:F9) -> 4 | G10: =SUM(G4:G9) -> 41 | H10: =SUM(H4:H9) -> 28 | I10: =SUM(I4:I9) -> 360 | J10: 0.0 % | K10: =SUM(K4:K9) -> 0 | Q10: =SUM(Q4:Q9) -> 0 | R10: =SUM(R4:R9) -> 0 | S10: =SUM(S4:S9) -> 0 | T10: =SUM(T4:T9) -> 0 | U10: =SUM(U4:U9) -> 0 | V10: 0.0 % | W10: =SUM(W4:W9) -> 0 | X10: YHTEENSÄ | AA10: =SUM(AA4:AA9) -> 44 | AB10: =SUM(AB4:AB9) -> 1 | AC10: =SUM(AC4:AC9) -> 32 | AD10: =SUM(AD4:AD9) -> 33 | AE10: =SUM(AE4:AE9) -> 0 | AF10: 0.0 % | AG10: =SUM(AG4:AG9) -> 0 | AM10: =SUM(AM4:AM9) -> 0 | AN10: =SUM(AN4:AN9) -> 0 | AO10: =SUM(AO4:AO9) -> 0 | AP10: =SUM(AP4:AP9) -> 0 | AQ10: =SUM(AQ4:AQ9) -> 0 | AR10: 0.0 % | AS10: =SUM(AS4:AS9) -> 0
B12: KAIKKI OTTELUT | E12: OTT | F12: KUN | G12: LÖI | H12: TOI | I12: KL | J12: KL-% | L12: ka/L | M12: ka/T | N12: ka/l+t | O12: ka/kl | R12: Seurat | T12: TPP = Tammelan Pallopeliitat
B13: SUPERPESIS | E13: 0 | F13: 0 | G13: 0 | H13: 0 | I13: 0 | J13: 0.0 % | K13: =PRODUCT(I13/J13) ->  | L13: 0.00 | M13: 0.00 | N13: 0.00 | O13: 0.00 | T13: JoKo = Jokioisten Koetus (1902)
B14: YKKÖSPESIS | E14: =PRODUCT(E10+Q10) -> 52 | F14: =PRODUCT(F10+R10) -> 4 | G14: =PRODUCT(G10+S10) -> 41 | H14: =PRODUCT(H10+T10) -> 28 | I14: =PRODUCT(I10+U10) -> 360 | J14: 0.0 % | K14: =PRODUCT(K10+W10) -> 0 | L14: =PRODUCT((F14+G14)/E14) -> 0.87 | M14: =PRODUCT(H14/E14) -> 0.54 | N14: =PRODUCT((F14+G14+H14)/E14) -> 1.40 | O14: =PRODUCT(I14/E14) -> 6.92
B15: SUOMENSARJA | E15: =PRODUCT(AA10+AM10) -> 44 | F15: =PRODUCT(AB10+AN10) -> 1 | G15: =PRODUCT(AC10+AO10) -> 32 | H15: =PRODUCT(AD10+AP10) -> 33 | I15: =PRODUCT(AE10+AQ10) -> 0 | J15: 0.0 % | K15: =PRODUCT(AG10+AS10) -> 0 | L15: =PRODUCT((F15+G15)/E15) -> 0.75 | M15: =PRODUCT(H15/E15) -> 0.75 | N15: =PRODUCT((F15+G15+H15)/E15) -> 1.50 | O15: =PRODUCT(I15/E15) -> 0.00
B16: YHTEENSÄ | E16: =SUM(E13:E15) -> 96 | F16: =SUM(F13:F15) -> 5 | G16: 73 | H16: 61 | I16: 360 | J16: 0.0 % | K16: =SUM(K13:K15) ->  | L16: =PRODUCT((F16+G16)/E16) -> 0.81 | M16: =PRODUCT(H16/E16) -> 0.64 | N16: =PRODUCT((F16+G16+H16)/E16) -> 1.45 | O16: =PRODUCT(I16/52) -> 6.92
